[Event "14th Margaryan Memorial-IM 2024"]
[Site "Yerevan"]
[Date "2024.01.13"]
[Round "6.6"]
[White "Zakaryan, David"]
[Black "Putrenko, Kirill"]
[Result "1/2-1/2"]
[ECO "B84"]
[WhiteElo "2299"]
[BlackElo "2353"]
[Annotator "RC"]
[PlyCount "73"]
[EventDate "2024.01.08"]
[EventType "tourn"]
[EventCountry "ARM"]
[SourceTitle "playchess.com"]
[Source "ChessBase"]
[SourceQuality "1"]
[TimeControl "40/5400+30:1800+30"]

1. e4 {[%emt 0:00:02]} c5 {[%emt 0:00:09]} 2. Nf3 {[%emt 0:00:03]} d6 {[%emt 0:00:08]} 3. d4 {[%emt 0:00:03]} cxd4 {[%emt 0:00:06]} 4. Nxd4 {[%emt 0:00:02]} Nf6 {[%emt 0:00:10]} 5. Nc3 {[%emt 0:00:03]} a6 {[%emt 0:00:09]} 6. Be3 {[%emt 0:00:03]} e6 {[%emt 0:00:22]} 7. Be2 {[%emt 0:00:07]} Be7 {[%emt 0:00:33]} 8. f4 {[%emt 0:00:20]} O-O {[%emt 0:00:23]} 9. g4 {[%emt 0:00:32]} d5 {[%emt 0:00:27]} 10. e5 {[%emt 0:00:32]} Ne4 {[%emt 0:00:02]} 11. Nxe4 {[%emt 0:00:01]} dxe4 {[%emt 0:00:02]} 12. O-O {[%emt 0:00:34]} Qc7 {[%emt 0:02:37]} 13. c3 {[%emt 0:00:51]} b6 {[%emt 0:23:18]} 14. Qe1 {[%emt 0:03:18]} Nd7 {[%emt 0:05:49]} 15. Qg3 {[%emt 0:02:31]} b5 {[%emt 0:08:55]} 16. g5 {[%emt 0:05:14]} Bb7 {[%emt 0:02:09]} 17. h4 {[%emt 0:00:45]} Bd5 {[%emt 0:01:11]} 18. h5 {[%emt 0:00:41]} Kh8 {[%emt 0:13:21]} 19. Qh3 {[%emt 0:05:18]} Nc5 {[%emt 0:07:22]} 20. Rf2 {[%emt 0:06:51]} f5 {[%emt 0:02:11]} 21. exf6 {[%emt 0:05:33]} gxf6 {[%emt 0:00:01]} 22. f5 {[%emt 0:03:18]} fxg5 {[%emt 0:03:02]} 23. Raf1 {[%emt 0:01:23]} g4 {[%emt 0:06:59]} 24. Bxg4 {[%emt 0:00:20]} Nd3 {[%emt 0:00:15]} 25. fxe6 {[%emt 0:04:18]} Nxf2 {[%emt 0:00:56]} 26. Rxf2 {[%emt 0:02:30]} Rxf2 {[%emt 0:01:22]} 27. Kxf2 {[%emt 0:01:30]} Rf8+ {[%emt 0:03:19]} 28. Ke1 {[%emt 0:00:35]} Bf6 {[%emt 0:03:56]} 29. a3 {[%emt 0:00:48]} Qc4 {[%emt 0:04:49]} 30. Ne2 {[%emt 0:02:38]} Qd3 {[%emt 0:01:58]} 31. Nf4 {[%emt 0:04:42]} Bh4+ {[%emt 0:01:31]} 32. Qxh4 {[%emt 0:00:30]} Qxe3+ {[%emt 0:00:00]} 33. Ne2 {[%emt 0:00:09]} Qd3 {[%emt 0:02:47]} 34. Qg5 {[%emt 0:04:00]} e3 {[%emt 0:03:20]} 35. Qe5+ {[%emt 0:00:07]} Kg8 {[%emt 0:00:01]} 36. Qg5+ {[%emt 0:00:07]} Kh8 {[%emt 0:00:06]} 37. Qe5+ {[%emt 0:00:02]} 1/2-1/2

[Event "14th Margaryan Memorial-IM 2024"]
[Site "Yerevan"]
[Date "2024.01.13"]
[Round "6.7"]
[White "Pashikyan, Rudolf"]
[Black "Ambartsumian, Tyhran"]
[Result "1-0"]
[ECO "B07"]
[WhiteElo "2287"]
[BlackElo "2224"]
[Annotator "RC"]
[PlyCount "81"]
[EventDate "2024.01.08"]
[EventType "tourn"]
[EventCountry "ARM"]
[SourceTitle "playchess.com"]
[Source "ChessBase"]
[SourceQuality "1"]
[TimeControl "40/5400+30:1800+30"]

1. d4 {[%emt 0:00:02]} Nf6 {[%emt 0:00:45]} 2. Nf3 {[%emt 0:00:06]} g6 {[%emt 0:00:05]} 3. Nbd2 {[%emt 0:00:03]} Bg7 {[%emt 0:04:50]} 4. e4 {[%emt 0:00:11]} d6 {[%emt 0:00:09]} 5. Bb5+ {[%emt 0:00:04]} c6 {[%emt 0:05:42]} 6. Bd3 {[%emt 0:00:12]} O-O {[%emt 0:04:06]} 7. c3 {[%emt 0:00:12]} Qc7 {[%emt 0:05:16]} 8. a4 {[%emt 0:00:35]} a5 {[%emt 0:03:04]} 9. O-O {[%emt 0:00:12]} Nbd7 {[%emt 0:00:51]} 10. Re1 {[%emt 0:00:08]} e5 {[%emt 0:08:19]} 11. h3 {[%emt 0:00:51]} Nb6 {[%emt 0:05:35]} 12. dxe5 {[%emt 0:14:03]} dxe5 {[%emt 0:00:09]} 13. Nc4 {[%emt 0:00:02]} Rd8 {[%emt 0:40:19]} 14. Nxb6 {[%emt 0:11:48]} Qxb6 {[%emt 0:00:08]} 15. Nxe5 {[%emt 0:00:04]} Be6 {[%emt 0:00:27]} 16. Qe2 {[%emt 0:00:53]} Nh5 {[%emt 0:00:35]} 17. Ng4 {[%emt 0:04:53]} Qc7 {[%emt 0:04:33]} 18. Bc4 {[%emt 0:15:24]} Re8 {[%emt 0:05:09]} 19. Nh2 {[%emt 0:13:45]} Bd5 {[%emt 0:01:07]} 20. Qd3 {[%emt 0:01:24]} Re6 {[%emt 0:01:41]} 21. Bxd5 {[%emt 0:05:03]} cxd5 {[%emt 0:00:09]} 22. Qxd5 {[%emt 0:00:07]} Rd8 {[%emt 0:00:16]} 23. Qb3 {[%emt 0:01:00]} Rde8 {[%emt 0:00:57]} 24. Nf3 {[%emt 0:02:15]} Nf6 {[%emt 0:00:36]} 25. Be3 {[%emt 0:06:40]} Nxe4 {[%emt 0:00:32]} 26. Rad1 {[%emt 0:00:04]} h5 {[%emt 0:00:25]} 27. Qd5 {[%emt 0:02:20]} Bf6 {[%emt 0:02:02]} 28. Qd7 {[%emt 0:04:30]} Qc4 {[%emt 0:00:40]} 29. Qxb7 {[%emt 0:03:26]} Qxa4 {[%emt 0:00:06]} 30. Ra1 {[%emt 0:00:07]} Qc2 {[%emt 0:00:52]} 31. Rxa5 {[%emt 0:01:15]} Nd6 {[%emt 0:00:12]} 32. Qb4 {[%emt 0:00:15]} Nf5 {[%emt 0:00:34]} 33. Rc1 {[%emt 0:06:42]} Qd3 {[%emt 0:00:48]} 34. Qb5 {[%emt 0:00:04]} Qe4 {[%emt 0:00:19]} 35. Ra4 {[%emt 0:00:45]} Qc6 {[%emt 0:00:37]} 36. Qxc6 {[%emt 0:00:15]} Rxc6 {[%emt 0:00:02]} 37. Bf4 {[%emt 0:02:44]} Rb6 {[%emt 0:00:26]} 38. Rc2 {[%emt 0:01:53]} Rd8 {[%emt 0:00:47]} 39. g4 {[%emt 0:00:41]} Rd1+ {[%emt 0:00:57]} 40. Kg2 {[%emt 0:00:00]} hxg4 {[%emt 0:00:00]} 41. hxg4 {[%emt 0:15:05]} 1-0

[Event "14th Margaryan Memorial-IM 2024"]
[Site "Yerevan"]
[Date "2024.01.13"]
[Round "6.8"]
[White "Lomsadze, Davit"]
[Black "Rostomyan, Mikayel"]
[Result "0-1"]
[ECO "D02"]
[WhiteElo "2253"]
[BlackElo "2294"]
[Annotator "RC"]
[PlyCount "148"]
[EventDate "2024.01.08"]
[EventType "tourn"]
[EventCountry "ARM"]
[SourceTitle "playchess.com"]
[Source "ChessBase"]
[SourceQuality "1"]
[TimeControl "40/5400+30:1800+30"]

1. Nf3 {[%emt 0:00:02]} d5 {[%emt 0:00:31]} 2. g3 {[%emt 0:00:02]} Nc6 {[%emt 0:00:22]} 3. d4 {[%emt 0:00:13]} Bf5 {[%emt 0:00:38]} 4. Bg2 {[%emt 0:00:02]} Nb4 {[%emt 0:00:43]} 5. Na3 {[%emt 0:00:12]} e6 {[%emt 0:00:29]} 6. O-O {[%emt 0:00:46]} h6 {[%emt 0:00:38]} 7. c3 {[%emt 0:00:58]} Na6 {[%emt 0:01:30]} 8. Ne5 {[%emt 0:01:14]} c6 {[%emt 0:00:27]} 9. Nc2 {[%emt 0:02:18]} Nf6 {[%emt 0:01:06]} 10. f3 {[%emt 0:01:07]} Be7 {[%emt 0:01:38]} 11. e4 {[%emt 0:01:11]} Bh7 {[%emt 0:00:23]} 12. Qe2 {[%emt 0:00:29]} Nc7 {[%emt 0:00:46]} 13. Bf4 {[%emt 0:06:58]} O-O {[%emt 0:04:19]} 14. Rad1 {[%emt 0:00:04]} Nd7 {[%emt 0:01:56]} 15. Ng4 {[%emt 0:05:27]} a5 {[%emt 0:14:43]} 16. Bc1 {[%emt 0:00:51]} b5 {[%emt 0:03:10]} 17. Nce3 {[%emt 0:00:05]} f6 {[%emt 0:08:03]} 18. Nf2 {[%emt 0:02:30]} Nb6 {[%emt 0:07:08]} 19. f4 {[%emt 0:01:00]} Nc4 {[%emt 0:00:45]} 20. Nxc4 {[%emt 0:00:54]} bxc4 {[%emt 0:00:19]} 21. Rfe1 {[%emt 0:01:49]} Bd6 {[%emt 0:03:31]} 22. Qh5 {[%emt 0:03:01]} f5 {[%emt 0:06:17]} 23. exd5 {[%emt 0:01:02]} cxd5 {[%emt 0:01:07]} 24. Re2 {[%emt 0:07:16]} a4 {[%emt 0:01:04]} 25. a3 {[%emt 0:00:54]} Qf6 {[%emt 0:01:26]} 26. Rde1 {[%emt 0:00:17]} Bg6 {[%emt 0:01:35]} 27. Qf3 {[%emt 0:00:07]} Qf7 {[%emt 0:03:21]} 28. Qe3 {[%emt 0:02:58]} Bh5 {[%emt 0:01:21]} 29. Bf3 {[%emt 0:01:47]} Rae8 {[%emt 0:02:34]} 30. Kh1 {[%emt 0:01:42]} Re7 {[%emt 0:01:24]} 31. Rg1 {[%emt 0:01:24]} Kh8 {[%emt 0:02:46]} 32. Ree1 {[%emt 0:08:18]} Ne8 {[%emt 0:03:24]} 33. g4 {[%emt 0:02:33]} fxg4 {[%emt 0:00:34]} 34. Bxg4 {[%emt 0:00:06]} Nf6 {[%emt 0:01:40]} 35. Bh3 {[%emt 0:02:16]} Bg6 {[%emt 0:08:07]} 36. Rgf1 {[%emt 0:09:43]} Bf5 {[%emt 0:02:13]} 37. Bg2 {[%emt 0:00:27]} Ng4 {[%emt 0:02:10]} 38. Nxg4 {[%emt 0:00:46]} Bxg4 {[%emt 0:00:02]} 39. Bh3 {[%emt 0:01:27]} Bf5 {[%emt 0:00:43]} 40. Qg3 {[%emt 0:00:00]} Rfe8 {[%emt 0:00:00]} 41. Qh4 {[%emt 0:17:10]} Bxh3 {[%emt 0:21:07]} 42. Qxh3 {[%emt 0:00:02]} Qf5 {[%emt 0:00:11]} 43. Qf3 {[%emt 0:00:40]} Rf8 {[%emt 0:00:16]} 44. Qd1 {[%emt 0:00:08]} Ra7 {[%emt 0:01:37]} 45. Re2 {[%emt 0:02:40]} Rf6 {[%emt 0:00:44]} 46. Rg2 {[%emt 0:01:18]} Rg6 {[%emt 0:01:41]} 47. Rxg6 {[%emt 0:00:11]} Qxg6 {[%emt 0:00:02]} 48. Qf3 {[%emt 0:03:14]} Rf7 {[%emt 0:00:19]} 49. h3 {[%emt 0:02:12]} Qf5 {[%emt 0:00:29]} 50. Qg4 {[%emt 0:02:07]} Qe4+ {[%emt 0:01:14]} 51. Qg2 {[%emt 0:00:15]} g5 {[%emt 0:01:00]} 52. Qxe4 {[%emt 0:03:30]} dxe4 {[%emt 0:00:21]} 53. Re1 {[%emt 0:00:06]} Bxf4 {[%emt 0:00:14]} 54. Bxf4 {[%emt 0:00:37]} Rxf4 {[%emt 0:00:06]} 55. Kg2 {[%emt 0:00:03]} Kg7 {[%emt 0:00:22]} 56. Rd1 {[%emt 0:00:05]} e3 {[%emt 0:01:37]} 57. Re1 {[%emt 0:00:01]} Rf2+ {[%emt 0:00:12]} 58. Kg3 {[%emt 0:00:01]} Rxb2 {[%emt 0:00:18]} 59. Rxe3 {[%emt 0:00:02]} Rb3 {[%emt 0:02:35]} 60. Rxe6 {[%emt 0:00:04]} Rxc3+ {[%emt 0:00:24]} 61. Kg4 {[%emt 0:00:08]} Rxa3 {[%emt 0:00:30]} 62. Rc6 {[%emt 0:00:16]} Rc3 {[%emt 0:02:12]} 63. d5 {[%emt 0:01:46]} a3 {[%emt 0:01:56]} 64. Kf5 {[%emt 0:00:09]} Rf3+ {[%emt 0:02:00]} 65. Ke4 {[%emt 0:00:45]} Rxh3 {[%emt 0:00:50]} 66. Ra6 {[%emt 0:01:50]} Rd3 {[%emt 0:06:07]} 67. Ra4 {[%emt 0:00:04]} Kg6 {[%emt 0:02:32]} 68. Rxc4 {[%emt 0:00:06]} a2 {[%emt 0:00:21]} 69. Ra4 {[%emt 0:00:06]} Rd2 {[%emt 0:00:11]} 70. Ke5 {[%emt 0:00:03]} Kh5 {[%emt 0:01:10]} 71. d6 {[%emt 0:00:08]} g4 {[%emt 0:00:17]} 72. Ke6 {[%emt 0:00:36]} g3 {[%emt 0:00:18]} 73. d7 {[%emt 0:00:03]} Rxd7 {[%emt 0:00:47]} 74. Rxa2 {[%emt 0:00:05]} Rg7 {[%emt 0:00:09]} 0-1

[Event "14th Margaryan Memorial-IM 2024"]
[Site "Yerevan"]
[Date "2024.01.13"]
[Round "6.9"]
[White "Kaiyrbekov, Rustam"]
[Black "Gasparyan, Erik R."]
[Result "0-1"]
[ECO "D02"]
[WhiteElo "2295"]
[BlackElo "2340"]
[Annotator "RC"]
[PlyCount "81"]
[EventDate "2024.01.08"]
[EventType "tourn"]
[EventCountry "ARM"]
[SourceTitle "playchess.com"]
[Source "ChessBase"]
[SourceQuality "1"]
[TimeControl "40/5400+30:1800+30"]

1. d4 {[%emt 0:00:03]} Nf6 {[%emt 0:00:27]} 2. Nf3 {[%emt 0:00:06]} d5 {[%emt 0:00:27]} 3. Bf4 {[%emt 0:00:25]} c5 {[%emt 0:00:10]} 4. e3 {[%emt 0:00:07]} Nc6 {[%emt 0:00:24]} 5. c3 {[%emt 0:01:09]} Nh5 {[%emt 0:00:26]} 6. Bg5 {[%emt 0:03:57]} h6 {[%emt 0:00:23]} 7. Bh4 {[%emt 0:00:08]} g5 {[%emt 0:00:12]} 8. Bg3 {[%emt 0:03:05]} g4 {[%emt 0:02:24]} 9. Nfd2 {[%emt 0:07:45]} Nxg3 {[%emt 0:08:33]} 10. hxg3 {[%emt 0:00:02]} Bf5 {[%emt 0:00:11]} 11. dxc5 {[%emt 0:07:40]} e5 {[%emt 0:04:23]} 12. Nb3 {[%emt 0:05:25]} h5 {[%emt 0:14:04]} 13. N1d2 {[%emt 0:09:43]} Qf6 {[%emt 0:03:59]} 14. Qe2 {[%emt 0:03:02]} O-O-O {[%emt 0:01:36]} 15. Qb5 {[%emt 0:07:39]} Bh6 {[%emt 0:18:26]} 16. Bd3 {[%emt 0:13:31]} Kb8 {[%emt 0:12:23]} 17. Bxf5 {[%emt 0:04:32]} Qxf5 {[%emt 0:00:09]} 18. Na5 {[%emt 0:07:04]} Nxa5 {[%emt 0:02:06]} 19. Qxa5 {[%emt 0:00:01]} Rc8 {[%emt 0:06:26]} 20. Nb3 {[%emt 0:13:58]} h4 {[%emt 0:05:46]} 21. Rxh4 {[%emt 0:02:12]} Bg5 {[%emt 0:00:04]} 22. Rxh8 {[%emt 0:03:24]} Rxh8 {[%emt 0:00:02]} 23. O-O-O {[%emt 0:04:19]} Qxf2 {[%emt 0:00:10]} 24. Qb5 {[%emt 0:00:10]} Qxe3+ {[%emt 0:06:47]} 25. Kb1 {[%emt 0:00:02]} a6 {[%emt 0:00:07]} 26. Qb6 {[%emt 0:00:34]} Rh6 {[%emt 0:02:56]} 27. Qb4 {[%emt 0:00:27]} Qe2 {[%emt 0:00:09]} 28. Rg1 {[%emt 0:00:20]} f5 {[%emt 0:03:02]} 29. c6 {[%emt 0:01:46]} Qe4+ {[%emt 0:02:12]} 30. Qxe4 {[%emt 0:00:02]} dxe4 {[%emt 0:00:05]} 31. cxb7 {[%emt 0:00:16]} Kxb7 {[%emt 0:02:39]} 32. Rf1 {[%emt 0:00:16]} Rf6 {[%emt 0:00:07]} 33. Nc5+ {[%emt 0:01:09]} Kc6 {[%emt 0:00:59]} 34. b4 {[%emt 0:00:20]} e3 {[%emt 0:01:19]} 35. Kc2 {[%emt 0:00:08]} f4 {[%emt 0:01:09]} 36. Nd3 {[%emt 0:02:37]} Kd5 {[%emt 0:01:45]} 37. Rd1 {[%emt 0:00:45]} f3 {[%emt 0:00:58]} 38. Nf2+ {[%emt 0:00:15]} Kc6 {[%emt 0:00:13]} 39. Nxg4 {[%emt 0:00:12]} f2 {[%emt 0:01:14]} 40. Nxe5+ {[%emt 0:00:00]} Kc7 {[%emt 0:00:00]} 41. Ra1 {[%emt 0:32:24]} 0-1

[Event "14th Margaryan Memorial-IM 2024"]
[Site "Yerevan"]
[Date "2024.01.13"]
[Round "6.10"]
[White "Sagradov Sahakyan, Alexander"]
[Black "Hayrapetyan, Edgar"]
[Result "1-0"]
[ECO "E46"]
[WhiteElo "1423"]
[BlackElo "2233"]
[Annotator "RC"]
[PlyCount "145"]
[EventDate "2024.01.08"]
[EventType "tourn"]
[EventCountry "ARM"]
[SourceTitle "playchess.com"]
[Source "ChessBase"]
[SourceQuality "1"]
[TimeControl "40/5400+30:1800+30"]

1. d4 {[%emt 0:00:02]} Nf6 {[%emt 0:00:05]} 2. c4 {[%emt 0:00:04]} e6 {[%emt 0:01:31]} 3. Nc3 {[%emt 0:00:04]} Bb4 {[%emt 0:01:23]} 4. e3 {[%emt 0:00:04]} O-O {[%emt 0:00:05]} 5. Bd2 {[%emt 0:00:05]} Re8 {[%emt 0:03:35]} 6. a3 {[%emt 0:00:10]} Bf8 {[%emt 0:05:13]} 7. e4 {[%emt 0:00:49]} d5 {[%emt 0:08:17]} 8. e5 {[%emt 0:03:46]} Ne4 {[%emt 0:06:14]} 9. Nxe4 {[%emt 0:08:28]} dxe4 {[%emt 0:00:06]} 10. Bc3 {[%emt 0:16:12]} c5 {[%emt 0:07:11]} 11. dxc5 {[%emt 0:06:29]} Qc7 {[%emt 0:17:09]} 12. Qd4 {[%emt 0:12:55]} Nd7 {[%emt 0:01:32]} 13. Qxe4 {[%emt 0:09:49]} Nxc5 {[%emt 0:00:13]} 14. Qe3 {[%emt 0:01:21]} b5 {[%emt 0:10:21]} 15. cxb5 {[%emt 0:06:12]} Bb7 {[%emt 0:00:26]} 16. Nf3 {[%emt 0:01:10]} Nb3 {[%emt 0:18:48]} 17. Rd1 {[%emt 0:01:34]} Bc5 {[%emt 0:01:06]} 18. Qf4 {[%emt 0:00:25]} Rad8 {[%emt 0:12:45]} 19. Bd3 {[%emt 0:01:10]} Bxf3 {[%emt 0:00:18]} 20. Qxf3 {[%emt 0:01:22]} Nd4 {[%emt 0:00:21]} 21. Qe4 {[%emt 0:00:17]} g6 {[%emt 0:00:07]} 22. O-O {[%emt 0:00:32]} Rd5 {[%emt 0:00:02]} 23. Rfe1 {[%emt 0:01:49]} Red8 {[%emt 0:00:02]} 24. Bc4 {[%emt 0:00:50]} R5d7 {[%emt 0:00:03]} 25. a4 {[%emt 0:05:19]} Bb6 {[%emt 0:02:29]} 26. Bf1 {[%emt 0:02:53]} Qc5 {[%emt 0:01:07]} 27. Kh1 {[%emt 0:07:19]} Nb3 {[%emt 0:01:25]} 28. Rxd7 {[%emt 0:00:27]} Rxd7 {[%emt 0:00:01]} 29. Qf3 {[%emt 0:04:14]} Qxf2 {[%emt 0:00:55]} 30. Qxf2 {[%emt 0:01:21]} Bxf2 {[%emt 0:00:04]} 31. Rb1 {[%emt 0:00:11]} Nc5 {[%emt 0:01:38]} 32. a5 {[%emt 0:00:33]} Ne4 {[%emt 0:00:01]} 33. Be1 {[%emt 0:00:15]} Nd2 {[%emt 0:01:16]} 34. Bxd2 {[%emt 0:03:20]} Rxd2 {[%emt 0:00:08]} 35. b6 {[%emt 0:00:47]} axb6 {[%emt 0:00:05]} 36. a6 {[%emt 0:00:01]} b5 {[%emt 0:00:03]} 37. Bxb5 {[%emt 0:00:13]} Rd5 {[%emt 0:00:33]} 38. Bc6 {[%emt 0:01:12]} Rxe5 {[%emt 0:00:55]} 39. b4 {[%emt 0:00:47]} Re2 {[%emt 0:00:07]} 40. b5 {[%emt 0:00:00]} Ra2 {[%emt 0:00:00]} 41. g3 {[%emt 0:19:13]} Bb6 {[%emt 0:15:56]} 42. Rd1 {[%emt 0:00:42]} Kg7 {[%emt 0:01:36]} 43. Rd7 {[%emt 0:00:08]} Kf6 {[%emt 0:08:49]} 44. Rb7 {[%emt 0:00:11]} Be3 {[%emt 0:00:06]} 45. Be8 {[%emt 0:00:30]} Kf5 {[%emt 0:00:16]} 46. Bxf7 {[%emt 0:03:25]} g5 {[%emt 0:01:02]} 47. Re7 {[%emt 0:03:20]} Ra1+ {[%emt 0:00:22]} 48. Kg2 {[%emt 0:00:01]} g4 {[%emt 0:00:09]} 49. h4 {[%emt 0:00:57]} Bc5 {[%emt 0:05:11]} 50. Rxe6 {[%emt 0:00:49]} Rg1+ {[%emt 0:00:03]} 51. Kh2 {[%emt 0:00:10]} Rb1 {[%emt 0:00:08]} 52. Re2 {[%emt 0:01:50]} Rxb5 {[%emt 0:00:24]} 53. Be6+ {[%emt 0:00:06]} Kf6 {[%emt 0:00:05]} 54. Bxg4 {[%emt 0:00:08]} Ra5 {[%emt 0:01:05]} 55. Re6+ {[%emt 0:00:25]} Kg7 {[%emt 0:01:24]} 56. Rc6 {[%emt 0:00:24]} Bd4 {[%emt 0:00:13]} 57. Bf3 {[%emt 0:00:51]} Be5 {[%emt 0:00:26]} 58. Re6 {[%emt 0:01:45]} Bd4 {[%emt 0:01:19]} 59. Re7+ {[%emt 0:02:45]} Kf8 {[%emt 0:01:24]} 60. Rd7 {[%emt 0:00:46]} Be3 {[%emt 0:00:02]} 61. Rd6 {[%emt 0:01:45]} Ke7 {[%emt 0:00:40]} 62. Rc6 {[%emt 0:01:02]} Kd7 {[%emt 0:00:16]} 63. Rc3 {[%emt 0:00:30]} Bb6 {[%emt 0:00:17]} 64. Bb7 {[%emt 0:01:23]} h5 {[%emt 0:00:42]} 65. Kh3 {[%emt 0:00:37]} Ra2 {[%emt 0:00:24]} 66. Rd3+ {[%emt 0:00:20]} Ke7 {[%emt 0:00:15]} 67. Rd5 {[%emt 0:00:12]} Bc7 {[%emt 0:00:58]} 68. Rxh5 {[%emt 0:00:12]} Kf6 {[%emt 0:00:24]} 69. Rc5 {[%emt 0:00:51]} Be5 {[%emt 0:00:30]} 70. Rc6+ {[%emt 0:00:17]} Kf7 {[%emt 0:01:09]} 71. Rc1 {[%emt 0:00:25]} Kg6 {[%emt 0:01:16]} 72. Rf1 {[%emt 0:00:46]} Bb8 {[%emt 0:00:21]} 73. Be4+ {[%emt 0:00:49]} 1-0

[Event "14th Margaryan Memorial-IM 2024"]
[Site "Yerevan"]
[Date "2024.01.14"]
[Round "7.1"]
[White "Ohanyan, Emin"]
[Black "Babujian, Levon"]
[Result "1-0"]
[ECO "E17"]
[WhiteElo "2456"]
[BlackElo "2346"]
[Annotator "RC"]
[PlyCount "117"]
[EventDate "2024.01.08"]
[EventType "tourn"]
[EventCountry "ARM"]
[SourceTitle "playchess.com"]
[Source "ChessBase"]
[SourceQuality "1"]
[TimeControl "40/5400+30:1800+30"]

1. d4 {[%emt 0:04:37]} Nf6 {[%emt 0:00:07]} 2. c4 {[%emt 0:00:35]} e6 {[%emt 0:00:05]} 3. Nf3 {[%emt 0:00:32]} b6 {[%emt 0:00:18]} 4. g3 {[%emt 0:00:05]} Bb7 {[%emt 0:00:07]} 5. Bg2 {[%emt 0:00:05]} Be7 {[%emt 0:00:10]} 6. Nc3 {[%emt 0:00:05]} O-O {[%emt 0:00:07]} 7. Qc2 {[%emt 0:00:04]} c5 {[%emt 0:04:29]} 8. d5 {[%emt 0:01:01]} exd5 {[%emt 0:00:11]} 9. Nh4 {[%emt 0:00:33]} b5 {[%emt 0:06:21]} 10. cxb5 {[%emt 0:35:49]} a6 {[%emt 0:02:58]} 11. Nf5 {[%emt 0:31:03]} axb5 {[%emt 0:03:32]} 12. Bg5 {[%emt 0:01:46]} Nc6 {[%emt 0:04:03]} 13. Nxe7+ {[%emt 0:03:46]} Nxe7 {[%emt 0:03:40]} 14. Bxf6 {[%emt 0:00:13]} gxf6 {[%emt 0:00:08]} 15. Rd1 {[%emt 0:03:00]} Re8 {[%emt 0:19:08]} 16. O-O {[%emt 0:01:04]} Bc6 {[%emt 0:12:08]} 17. Nxd5 {[%emt 0:00:44]} Nxd5 {[%emt 0:01:47]} 18. Bxd5 {[%emt 0:00:07]} Qe7 {[%emt 0:00:03]} 19. e3 {[%emt 0:01:24]} c4 {[%emt 0:09:30]} 20. Rd4 {[%emt 0:06:20]} Qe5 {[%emt 0:01:10]} 21. Rfd1 {[%emt 0:02:41]} f5 {[%emt 0:08:47]} 22. a3 {[%emt 0:00:11]} Kg7 {[%emt 0:02:07]} 23. Qe2 {[%emt 0:00:34]} Qf6 {[%emt 0:01:25]} 24. Qf3 {[%emt 0:04:27]} Re5 {[%emt 0:00:22]} 25. Bxc6 dxc6 {[%emt 0:00:01]} 26. Kg2 {[%emt 0:02:09]} Rae8 {[%emt 0:02:44]} 27. R1d2 {[%emt 0:00:21]} Re4 {[%emt 0:01:18]} 28. h3 {[%emt 0:00:37]} Rxd4 {[%emt 0:00:33]} 29. Rxd4 {[%emt 0:00:19]} c5 {[%emt 0:00:53]} 30. Rf4 {[%emt 0:00:21]} Re5 {[%emt 0:02:22]} 31. Qb7 {[%emt 0:00:13]} Re4 {[%emt 0:06:51]} 32. Qxb5 {[%emt 0:00:22]} Rxf4 {[%emt 0:00:04]} 33. gxf4 {[%emt 0:00:55]} c3 {[%emt 0:00:03]} 34. bxc3 {[%emt 0:00:08]} Qxc3 {[%emt 0:00:04]} 35. a4 {[%emt 0:00:21]} c4 {[%emt 0:05:34]} 36. Qxf5 {[%emt 0:00:16]} Qb3 {[%emt 0:04:16]} 37. Qb5 {[%emt 0:01:39]} Qd3 {[%emt 0:01:00]} 38. a5 {[%emt 0:00:26]} Qe4+ {[%emt 0:00:11]} 39. Kh2 {[%emt 0:00:27]} Qf3 {[%emt 0:00:50]} 40. Qg5+ {[%emt 0:00:00]} Kf8 {[%emt 0:00:00]} 41. Qg2 {[%emt 0:17:46]} Qxg2+ {[%emt 0:16:16]} 42. Kxg2 {[%emt 0:00:24]} c3 {[%emt 0:00:00]} 43. a6 {[%emt 0:00:07]} c2 {[%emt 0:00:02]} 44. a7 {[%emt 0:00:05]} c1=Q {[%emt 0:00:04]} 45. a8=Q+ {[%emt 0:00:06]} Kg7 {[%emt 0:00:02]} 46. Qd5 {[%emt 0:00:45]} h6 {[%emt 0:01:05]} 47. Qe5+ {[%emt 0:03:22]} Kh7 {[%emt 0:00:04]} 48. Qf6 {[%emt 0:00:06]} Qc4 {[%emt 0:00:03]} 49. Kg3 {[%emt 0:00:11]} Qa2 {[%emt 0:00:55]} 50. f3 {[%emt 0:04:26]} Qa7 {[%emt 0:00:41]} 51. Kh4 {[%emt 0:01:29]} Qb7 {[%emt 0:03:24]} 52. e4 {[%emt 0:02:45]} Qb3 {[%emt 0:00:46]} 53. Kg4 {[%emt 0:00:11]} Qc4 {[%emt 0:07:32]} 54. Kh5 {[%emt 0:00:45]} Qb5+ {[%emt 0:00:19]} 55. f5 {[%emt 0:00:08]} Qb3 {[%emt 0:00:55]} 56. Qxh6+ {[%emt 0:00:09]} Kg8 {[%emt 0:00:00]} 57. Qg5+ {[%emt 0:00:53]} Kh7 {[%emt 0:00:01]} 58. Kh4 {[%emt 0:00:10]} Qd1 {[%emt 0:00:27]} 59. f6 {[%emt 0:00:25]} 1-0

[Event "14th Margaryan Memorial-IM 2024"]
[Site "Yerevan"]
[Date "2024.01.14"]
[Round "7.2"]
[White "Sorensen, Hampus"]
[Black "Agasarov, Benik"]
[Result "1/2-1/2"]
[ECO "A14"]
[WhiteElo "2458"]
[BlackElo "2340"]
[Annotator "RC"]
[PlyCount "60"]
[EventDate "2024.01.08"]
[EventType "tourn"]
[EventCountry "ARM"]
[SourceTitle "playchess.com"]
[Source "ChessBase"]
[SourceQuality "1"]
[TimeControl "40/5400+30:1800+30"]

1. Nf3 {[%emt 0:00:20]} Nf6 {[%emt 0:00:37]} 2. g3 {[%emt 0:00:21]} d5 {[%emt 0:01:45]} 3. Bg2 {[%emt 0:00:15]} e6 {[%emt 0:00:12]} 4. O-O {[%emt 0:00:34]} Be7 {[%emt 0:00:10]} 5. c4 {[%emt 0:00:27]} O-O {[%emt 0:00:10]} 6. b3 {[%emt 0:00:11]} c5 {[%emt 0:00:19]} 7. cxd5 {[%emt 0:01:07]} Nxd5 {[%emt 0:00:13]} 8. Nc3 {[%emt 0:00:20]} Nc6 {[%emt 0:02:10]} 9. Bb2 {[%emt 0:00:31]} Nxc3 {[%emt 0:02:48]} 10. Bxc3 {[%emt 0:07:41]} Qc7 {[%emt 0:00:53]} 11. Qc2 {[%emt 0:09:33]} b6 {[%emt 0:09:31]} 12. Qb2 {[%emt 0:02:26]} f6 {[%emt 0:00:16]} 13. d4 {[%emt 0:00:32]} cxd4 {[%emt 0:01:18]} 14. Nxd4 {[%emt 0:02:11]} Nxd4 {[%emt 0:00:07]} 15. Bxd4 {[%emt 0:03:27]} Bb7 {[%emt 0:00:09]} 16. Rac1 {[%emt 0:02:49]} Qd7 {[%emt 0:00:16]} 17. Bxb7 {[%emt 0:00:32]} Qxb7 {[%emt 0:00:04]} 18. Rc4 {[%emt 0:12:53]} Rac8 {[%emt 0:00:13]} 19. Rfc1 {[%emt 0:08:54]} Rxc4 {[%emt 0:00:10]} 20. Rxc4 {[%emt 0:00:07]} Rc8 {[%emt 0:00:29]} 21. Qc2 {[%emt 0:00:27]} Rxc4 {[%emt 0:00:05]} 22. Qxc4 {[%emt 0:00:07]} Kf7 {[%emt 0:00:17]} 23. Be3 {[%emt 0:01:23]} Qd7 {[%emt 0:01:16]} 24. a4 {[%emt 0:05:14]} h5 {[%emt 0:01:48]} 25. h3 {[%emt 0:02:45]} Qd1+ {[%emt 0:01:52]} 26. Kg2 {[%emt 0:00:22]} Qd7 {[%emt 0:00:23]} 27. Kg1 {[%emt 0:08:00]} Qd1+ {[%emt 0:00:05]} 28. Kg2 {[%emt 0:00:09]} Qd7 {[%emt 0:00:04]} 29. Kg1 {[%emt 0:00:05]} Qd1+ {[%emt 0:00:04]} 30. Kg2 {[%emt 0:00:08]} Qd7 {[%emt 0:00:03]} 1/2-1/2